Cogmind - Beta 12 @@@ ROGUE MODE // 2023.11.21 @ 09:45:07 Player: Dosh Result: Smashed by cave-in Performance ------------- Evolutions (0) 0 Regions Visited (2) 400 Robots Destroyed (24) 120 Value Destroyed (588) 588 Prototype IDs (2) 40 Alien Tech Used (0) 0 Bonus (0) 0 TOTAL SCORE: 1148 Bonus ------- None Cogmind --------- Core Integrity 0/250 Matter 187/300 Energy 100/100 System Corruption 11% Temperature Cool (0) Movement Core (450) Ox8 Location -10/Mines Parts ------- > --- POWER (1) -------- (None) > --- PROPULSION (2) --- (None) > --- UTILITY (2) ------ Large Storage Unit Targeting Computer > --- WEAPON (2) ------- Grenade Launcher Mining Claw > --- INVENTORY (15) --- Ion Engine Improved Ion Engine Wheel Wheel Small Storage Unit Utility Shielding Medium Laser Medium Laser Light Assault Rifle Grenade Launcher Peak State ------------ > --- POWER ------------ Improved Ion Engine > --- PROPULSION ------- Light Treads Light Treads > --- UTILITY ---------- Small Storage Unit Large Storage Unit > --- WEAPON ----------- Grenade Launcher Grenade Launcher > --- INVENTORY -------- Ion Engine Improved Ion Engine Light Treads Wheel Wheel Utility Shielding Medium Laser Medium Laser Light Assault Rifle Mining Claw [Rating: 9] Favorites ----------- Power Improved Ion Engine Engine Improved Ion Engine Propulsion Light Treads Treads Light Treads Utility Large Storage Unit Storage Large Storage Unit Processor Targeting Computer Weapon Medium Laser Energy Gun Medium Laser Launcher Grenade Launcher Slashing Weapon Mining Claw Build | -11 -10 -10 ------- Run | Jun Mat Min Slots Evolved . | . . . Power . | . . . Propulsion . | . . . Utility . | . . . Weapon . | . . . Parts Attached 20 | 6 7 7 Power 4 | 1 3 . Engine 4 | 1 3 . Core . | . . . Reactor . | . . . Propulsion 4 | 2 1 1 Treads 4 | 2 1 1 Leg . | . . . Wheel . | . . . Hover . | . . . Flight . | . . . Utility 4 | 1 1 2 Device . | . . . Storage 3 | 1 1 1 Processor 1 | . . 1 Hackware . | . . . Protection . | . . . Artifact . | . . . Weapon 8 | 2 2 4 Energy Gun 4 | 2 2 . Energy Cannon . | . . . Ballistic Gun . | . . . Ballistic Cannon . | . . . Launcher 2 | . . 2 Special Weapon . | . . . Impact Weapon . | . . . Slashing Weapon 2 | . . 2 Piercing Weapon . | . . . Special Melee Weapon . | . . . Unidentified Prototypes . | . . . Parts Lost 5 | . 1 4 Power 1 | . . 1 Propulsion 3 | . . 3 Utility . | . . . Weapon 1 | . 1 . Highest Loss Streak 3 | . 1 3 To Critical Strikes . | . . . Average Slot Usage (%) 86 | . 85 88 Engine 14 | . 14 14 Treads 27 | . 28 27 Storage 14 | . 14 14 Processor 1 | . . 3 Energy Gun 18 | . 27 . Launcher 9 | . . 27 Naked Turns . | . . . Heaviest Build 36 | 14 36 33 Greatest Support 40 | 40 40 40 Greatest Overweight (x) 4 | 4 . 1 Average Overweight (x) . | . . . Largest Inventory Capacity 15 | 8 15 15 Average Capacity 12 | 7 11 15 Most Carried 13 | 4 11 13 Average Carried 8 | 1 8 10 Final Capacity 15 | 8 15 15 Final Carried 11 | 4 11 10 Class Distribution -------------------- 100% | Mutant Dominant Class ---------------- Mutant | -10/Materials Mutant | -10/Mines Resources | -11 -10 -10 ----------- Run | Jun Mat Min Matter Collected 422 | 258 87 77 Remotely . | . . . Salvage Created 539 | . 410 129 Parts 42 | . 29 13 Haulers Intercepted . | . . . Recyclers Shooed 1 | . 1 . Parts Field Recycled . | . . . Retrieved Matter . | . . . Parts Self-Destructed . | . . . Prevented . | . . . Kills | -11 -10 -10 ------- Run | Jun Mat Min Combat Hostiles Destroyed 21 | . 11 10 Guns 9 | . 9 . AOE 12 | . 2 10 Classes Destroyed 4 | . 4 . Worker 2 | . 1 1 Watcher 1 | . 1 . Swarmer 9 | . 3 6 Grunt 12 | . 8 4 Best Kill Streak 5 | . 5 4 Combat Bots Only 4 | . 4 4 Max Kills in Single Turn 4 | . 3 4 Gunslinging 1 | . 1 . Exploded 3 | . 2 3 Melee . | . . . Uniques/NPCs Destroyed . | . . . Combat | -11 -10 -10 -------- Run | Jun Mat Min Damage Taken 1192 | . 719 473 Core 285 | . 169 116 Absorbed by Shields . | . . . Core Remaining (%) 100 | 100 . . Volleys Fired 45 | . 38 7 Largest 2 | . 2 2 Hottest 100 | . 100 60 Shots Fired 85 | . 72 13 Gun 72 | . 72 . Cannon . | . . . Launcher 13 | . . 13 Special . | . . . Kinetic . | . . . Thermal 48 | . 48 . Explosive 13 | . . 13 Electromagnetic 24 | . 24 . Robot Hit Streak 9 | . 8 9 Robot Miss Streak 6 | . 6 2 Penetration Max . | . . . Secondary Targets 3 | . 3 . Max Gunslinging Chain 1 | . 1 . Shots Hit Robots 48 | . 41 7 Core Hits 37 | . 23 14 Critical Kills . | . . . Critical Parts Destroyed . | . . . Critical Strikes 5 | . 5 . Burn 5 | . 5 . Melee Attacks 1 | . . 1 Impact . | . . . Slashing 1 | . . 1 Piercing . | . . . Sneak Attacks . | . . . Combat Hostiles . | . . . Follow-up Attacks . | . . . Damage Inflicted 1352 | 2 692 658 Guns 558 | . 558 . Cannons . | . . . Explosions 788 | . 130 658 Melee . | . . . Ramming 6 | 2 4 . Kinetic . | . . . Thermal 505 | . 505 . Explosive 658 | . . 658 Electromagnetic 183 | . 183 . Impact . | . . . Slashing . | . . . Piercing . | . . . Highest Corruption . | . . . Average Corruption . | . . . Corruption Purged . | . . . Corruption Blocked . | . . . Overload Shots . | . . . Overflow Damage 36 | . . 36 Projectiles . | . . . Explosions 36 | . . 36 Melee . | . . . Knockbacks . | . . . Impact . | . . . Kinetic . | . . . Secondary . | . . . Self-Inflicted Damage 95 | . 42 53 Shots 3 | . 1 2 Rammed 2 | 1 1 . Targets Rammed 2 | 1 1 . Kicked . | . . . Crushed . | . . . Highest Temperature 453 | . 453 12 Average Temperature 111 | . 122 4 Received Heat Transfer 309 | . 273 36 Effects 2 | . 2 . Matter Decay 1 | . 1 . Short Circuit 1 | . 1 . Siege Activations . | . . . Robots Corrupted . | . . . Combat Hostiles . | . . . Parts Fried . | . . . Impact Corruptions . | . . . Robots Melted . | . . . Combat Hostiles . | . . . Parts Melted 2 | . 2 . Heat Transferred 1530 | . 1530 . Parts Sabotaged . | . . . Parts Stolen . | . . . Parts Stripped . | . . . Power Chain Reactions 1 | . 1 . Missiles Intercepted . | . . . Alert | -11 -10 -10 ------- Run | Jun Mat Min Peak Influence 196 | . 167 196 Initial 25 | . . 25 Average 72 | . 57 113 Maximum Alert Level . | . . . Low Security (%) 100 | 100 100 100 Level 1 . | . . . Level 2 . | . . . Level 3 . | . . . Level 4 . | . . . Level 5 . | . . . High Security . | . . . Max Security . | . . . Squads Dispatched 2 | . 2 . Investigation 1 | . 1 . Extermination . | . . . Reinforcement 1 | . 1 . Assault . | . . . Garrison . | . . . Intercept . | . . . Searches Triggered . | . . . Construction Impeded . | . . . Haulers Reinforced . | . . . Active Scanning Responses . | . . . Cargo Convoy Interrupts . | . . . Stealth | -11 -10 -10 --------- Run | Jun Mat Min Distress Signals 1 | . 1 . Communications Jammed . | . . . Distress Signals . | . . . Times Spotted 32 | . 22 10 Peak Tracking Total 5 | . 5 3 Tactical Retreats . | . . . Traps | -11 -10 -10 ------- Run | Jun Mat Min Traps Triggered 1 | . 1 . Indirectly . | . . . Trap Hack Attempts . | . . . Triggered . | . . . Disarmed . | . . . Reprogrammed . | . . . Reused . | . . . Traps Extracted . | . . . Installed . | . . . Triggered . | . . . Machines | -11 -10 -10 ---------- Run | Jun Mat Min Machines Disabled 2 | . . 2 Max in Single Turn 2 | . . 2 Machines Repaired . | . . . Machines Sabotaged . | . . . Overloaded Fab Kills . | . . . Hacking | -11 -10 -10 --------- Run | Jun Mat Min Machines Accessed 3 | . 3 . Terminals 3 | . 3 . Fabricators . | . . . Repair Stations . | . . . Recycling Units . | . . . Scanalyzers . | . . . Garrison Access . | . . . Total Hacks 8 | . 8 . Successful 4 | . 4 . Failed 4 | . 4 . Catastrophic . | . . . Database Lockouts . | . . . Manual . | . . . Terminals 8 | . 8 . Fabricators . | . . . Repair Stations . | . . . Recycling Units . | . . . Scanalyzers . | . . . Garrison Access . | . . . Terminal Hacks 4 | . 4 . Record 1 | . 1 . Prototype ID Bank 1 | . 1 . Branch Access Points 1 | . 1 . Alert Level 1 | . 1 . Fabricator Hacks . | . . . Repair Station Hacks . | . . . Recycling Unit Hacks . | . . . Scanalyzer . | . . . Garrison Access Hacks . | . . . Unauthorized Hacks . | . . . Terminals . | . . . Fabricators . | . . . Repair Stations . | . . . Recycling Units . | . . . Scanalyzers . | . . . Garrison Access . | . . . Data Cores Recovered . | . . . Used . | . . . Hacking Detections 1 | . 1 . Full Trace Events . | . . . Feedback Events . | . . . Feedback Blocked . | . . . Robot Schematics Acquired . | . . . Robots Built . | . . . Authchips . | . . . Time . | . . . Total Robot Build Rating . | . . . Part Schematics Acquired . | . . . Parts Built . | . . . Authchips . | . . . Time . | . . . Total Part Build Rating . | . . . Parts Repaired . | . . . Time . | . . . Parts Recycled . | . . . Recycled Matter . | . . . Retrieved Matter . | . . . Retrieved Components . | . . . Parts Scanalyzed . | . . . Part Schematics Acquired . | . . . Parts Damaged . | . . . Bothacking | -11 -10 -10 ------------ Run | Jun Mat Min Used RIF Installer . | . . . Robots Hacked . | . . . Non-combat . | . . . Combat . | . . . Robot Hacks Applied . | . . . Relay Couplers Released . | . . . Fabnet Peak Effective % . | . . . Robots Rewired . | . . . Allies Hacked . | . . . Hacks Repelled . | . . . Allies | -11 -10 -10 -------- Run | Jun Mat Min Total Allies 1 | . . 1 Largest Group 1 | . . 1 Highest-Rated Group 31 | . . 31 Highest-Rated Ally 31 | . . 31 Total Orders . | . . . Ally Attacks 5 | . . 5 Total Damage 40 | . . 40 Kills . | . . . Allies Corrupted . | . . . Allies Melted . | . . . Intel | -11 -10 -10 ------- Run | Jun Mat Min Robot Analysis Total . | . . . Derelict Logs Recovered 1 | . . 1 Drone Launches . | . . . Drone Recoveries . | . . . Exploration | -11 -10 -10 ------------- Run | Jun Mat Min Turns Passed 1842 | 100 1144 598 Spaces Moved 1019 | 59 615 345 Core 21 | 21 . . Treads 998 | 38 615 345 Legs . | . . . Wheels . | . . . Hover . | . . . Flight . | . . . Fastest Speed 50 | 50 160 160 Average Speed 160 | 146 160 162 Slowest Speed 250 | 250 160 240 Overloaded Moves . | . . . Propulsion Burnouts . | . . . Robots Hopped . | . . . Cave-ins Triggered 1 | . . 1 Exploration Rate (%) 59 | 5 84 88 Regions Visited 2 Branch Regions 1 Pre-discovered Areas . | . . . Known Exits Taken 1 | . 1 . Unknown Exits Taken 1 | 1 . . Scrap Searched 1 | . . 1 Spaces Dug 8 | . . 8 Terrain Destroyed 55 | . 4 51 Melee 1 | . . 1 Projectile . | . . . AOE 54 | . 4 50 Terrain Rammed . | . . . Walls Destroyed . | . . . Machines Disabled . | . . . Actions | -11 -10 -10 --------- Run | Jun Mat Min Total 1145 | 70 703 372 Wait 35 | . 31 4 Move 1018 | 59 614 345 Hop . | . . . Pick Up 12 | 5 7 . Fast Attach 10 | 5 1 4 Attach 6 | 1 2 3 Detach 7 | . 2 5 Swap 4 | . 4 . Drop 6 | . 3 3 Fire 45 | . 38 7 Melee 1 | . . 1 Ram . | . . . Kick . | . . . Crush 1 | . 1 . Escape Stasis . | . . . Rewire . | . . . Trap . | . . . Miscellaneous . | . . . Route ------- -11/Junkyard -10/Materials (discovered 3 exits: [*Mat x2] / *Min) -10/Mines (discovered 2 exits: [*Mat x2]) History --------- Turn | Location | Event 24 | -11/Junkyard | Discovered new exit (range 15) 101 | -11/Junkyard | Entered Materials 303 | -10/Materials | Build established: Mutant 406 | -10/Materials | Discovered new exit (range 15) 481 | -10/Materials | Identified exit to Mines 730 | -10/Materials | Core integrity fell below 50% 811 | -10/Materials | Discovered new exit (range 14) 910 | -10/Materials | Discovered new exit (range 16) 1245 | -10/Materials | Entered Mines 1248 | -10/Mines | Received a Mining Laser from a helpful Derelict 1359 | -10/Mines | Discovered new exit (range 10) 1451 | -10/Mines | Discovered new exit (range 5) 1838 | -10/Mines | Core integrity fell below 20% 1844 | -10/Mines | Crushed by falling debris 1844 | -10/Mines | Smashed by cave-in Last Messages --------------- 01785_ Pulverizer disabled. 01785_ S-10 Pest destroyed. 01806_ R-06 Scavenger collects Lgt. Assault Rifle. 01808_ The unstable cave ceiling collapses. 01810_ R-06 Scavenger collects Lgt. Ion Engine. 01821_ U-05 Engineer lays Concrete. 01823_ U-05 Engineer builds a Wall. 01826_ U-05 Engineer lays Concrete. 01828_ U-05 Engineer builds a Wall. 01832_ U-05 Engineer lays Concrete. 01840_ Dropped Mining Claw. 01840_ Acquired Mining Claw. 01844_ The unstable cave ceiling collapses. 01844_ Crushed by falling debris. 01844_ Imp. Ion Engine destroyed. 01844_ System corrupted by crushing effect (+1). 01844_ Lgt. Treads destroyed. 01844_ System corrupted by crushing effect (+5). 01844_ Lgt. Treads destroyed. 01844_ System corrupted by crushing effect (+5). Map ----- +----------------------------------------------------+ | ## #### ## #???????????????????????????? | | # ### ### ## ##??????????????????????????? | | ## #?####### #??????????????????????????? | | < ## #???????## #######################????? | | ## #????????## #????? | | ### #????##???## #????? | | ####### ???? #????## #################### #????? | | ?## ####???# #?????###??????????????????# #????? | | ## ##???# #????????????????????####??# #????? | | ##### ####????#####???????## ##?# #????? | | # #???## ##??????# ### #????? | | # ###?# ###????# ## #####? | | # #### ### ##### ##???# ## ## | | # ###??# ## ###?## # | | ## ##????# ## ##### # | | ?## #?????# ## # | | #?# #?????# ## | | #?# #?????## ##? | | #?# #??????# # ##?? | | #?# #??????#### ##?? | | ?? #?????????######## #?? | | ??####????????????????## #?? | | ???????????????????????## ### # ##?? | | ????????????????????????####?# ## ###??? | | ??????????????????????### ##?# ### ##????? | | ????????????????####### @ #?# ##### #?????? | | ???????????????## #?# ##?## #?????? | | ???????????????# #?# ##?## #?????? | | ???????????????# #?## ##?### #?????? | | ???????????????# " " ##?## #???# #?????? | | ??????????????## """ #?## #???# #?????? | | ??????????????# ["" ### ##??## ##????? | | ??????????????# ="" ## """ ##???# ##???? | | ??????????????## ## """ #????# #???? | | ???????????????## [ ## """ #????## ##??? | | ????????????????# # ### #?????## | ##?? | | ????????????????# ## ###?# #?####### ##? | | ????????????????##### #??## #### #### #? | | ???????????????????## ##???# ####### #?## ##? | | ???????????????????## #????# #???## % ##?####?? | | ????????????????????# #????# #?### #??????? | | ????????????????????# #????# ### = #???????? | | ????????????????????# #????# = ##???????? | | ????????????????????# #????# ## ] #????????? | | ????????????????????# ###### ### ##???????? | | ????????????????????# #?## ####????? | | ????????????????????# ##?# ##???? | | ????????????????????###### #?# #???? | | ?????????????????????????# #?## ### #???? | | ?????????????????????????# #??####?##] #???? | +----------------------------------------------------+ Best States ------------- Heat Dissipation 25 Energy Generation 12 Energy Capacity 265 Matter Stores 300 Matter Capacity 300 Sight Range 16 Terrain Scan Density 10 Evasion (%) 40 Targeting Accuracy 5 Recoil Reduction 2 Item Schematics ----------------- None Robot Schematics ------------------ None Fabricated ------------ Nothing Alien Tech Used ----------------- None Achievements -------------- None Challenges ------------ None Game ------ Seed AutogunHugeGravjet Manual? 0 Play Time 00:10:07 Cumulative 15.0 hours Start 2023.11.21 @ 09:37:33 End 2023.11.21 @ 09:45:07 Sessions 1 Manual Loads 0 Difficulty Rogue Special Mode None Game No. 35 Rogue 35 Adventurer 0 Explorer 0 Win Type - Total 0 Types 0/0/0/0/0/0/0/0/0 Lore% 17 Gallery% 21 Achievement% 17 Wizard Run 0 Options --------- ASCII 0 Keyboard 1 Movement Numpad Keybinds 0 Fullscreen 2 Font 18/SmallcapsGlow Map View 76x50 Tactical HUD 1 Map Filters NONE Filters NONE Steam 1 RUN: d762d55a-d05b-4737-adfb-72d785a8bfae